[Event "50th Ciudad Sevilla 2024"]
[Site "Sevilla"]
[Date "2025.01.13"]
[Round "4.18"]
[White "Rumbos Garcia, Alejandro Daniel"]
[Black "Bukal, Vladimir Jr."]
[Result "0-1"]
[Annotator "TA"]
[ECO "A13"]
[WhiteElo "2090"]
[BlackElo "2356"]
[PlyCount "202"]
[EventDate "2025.01.10"]
[EventType "swiss"]
[EventCountry "ESP"]
[SourceTitle "playchess.com"]
[Source "ChessBase"]
[SourceQuality "1"]
[TimeControl "90+30"]

{[%evp 15,202,-23,-16,-33,-24,-21,17,-21,-16,-1,0,0,-33,-81,-27,-15,-31,-18,-1,-18,-13,-50,-33,-43,-43,-45,-40,-45,-41,-38,-47,-49,-37,-133,-36,-72,-62,-138,-147,-193,-148,-156,-94,-110,-106,-103,-69,-162,-181,-170,-172,-170,-163,-169,-161,-177,-172,-175,-99,-180,-135,-193,-204,-192,-195,-195,-176,-199,-198,-225,-227,-225,-233,-299,-274,-501,-496,-530,-517,-945,-473,-444,-472,-542,-542,-429,-447,-412,-174,-266,-266,-249,-263,-304,-312,-333,-333,-323,-318,-327,-323,-318,-309,-304,-287,-333,-322,-270,-108,-108,-69,-69,-69,-382,-382,-351,0,0,0,0,0,0,0,-65,0,-29948,-29949,-29952,-29946,-29946,-29948,-29950,-29952,-29952,-29954,-29956,-29958,-29957,-29957,-29964,-29958,-29965,-29964,-29968,-29968,-29967,-29970,-29968,-5393,-29971,-29958,-29978,-29971,-29970,-29971,-29971,-29971,-29971,-29974,-29976,-29978,-29978,-29978,-29980,-29979,-29981,-29982,-29982,-29983,-29984,-29984,-29985,-29985,-29987,-29988,-29988,-29989,-29989,-29990,-29990,-29990,-29997,-508,-29990,-29990,-29991,-29992,-29995,-5409]} 1. Nf3 {[%emt 0:00:00]} d5 {[%emt 0:00:00]} 2. c4 {[%emt 0:00:00]} e6 {[%emt 0:00:00]} 3. g3 {[%emt 0:00:00]} Nf6 {[%emt 0:00:00]} 4. d4 {[%emt 0:00:00]} Bb4+ {[%emt 0:00:00]} 5. Nc3 {[%emt 0:00:00]} dxc4 {[%emt 0:00:00]} 6. Bg2 {[%emt 0:00:00]} Nc6 {[%emt 0:00:00]} 7. O-O {[%emt 0:00:00]} O-O {[%emt 0:00:00]} 8. e3 {[%emt 0:00:00]} Rb8 {[%emt 0:00:00]} 9. Qc2 {[%emt 0:00:00]} b5 {[%emt 0:00:00]} 10. Rd1 {[%emt 0:00:00]} Qe7 {[%emt 0:00:00]} 11. Ng5 {[%emt 0:00:00]} (11. e4 {simplifies} h6 12. a3 Bxc3 13. bxc3 Rd8 14. Nd2) 11... Bd7 $1 {[%emt 0:00:00]} 12. a4 {[%emt 0:00:00]} a6 {[%emt 0:00:00]} 13. axb5 {[%emt 0:00:00]} axb5 {[%emt 0:00:00]} 14. Ra6 {[%emt 0:00:00]} (14. e4 $15 Bxc3 15. bxc3) 14... Rb6 {[%emt 0:00:00]} (14... h6 $17 15. Nge4 Nd5 16. Nxd5 exd5) 15. Rxb6 $11 {[%emt 0:00:00]} cxb6 {[%emt 0:00:00]} 16. Nxb5 {[%emt 0:00:00]} Na5 {[%emt 0:00:00]} 17. Nc3 {[%emt 0:00:00]} h6 {[%emt 0:00:00]} 18. Nf3 {[%emt 0:00:00]} Bc6 {[%emt 0:00:00]} 19. Ne5 {[%emt 0:00:00]} Bxg2 {[%emt 0:00:00]} 20. Kxg2 {[%emt 0:00:00]} Qb7+ {[%emt 0:00:00]} 21. f3 {[%emt 0:00:00]} b5 {[%emt 0:00:00] Dodges Qa4} 22. e4 {[%emt 0:00:00]} Nb3 {[%emt 0:00:00]} 23. Be3 {[%emt 0:00:00]} Rd8 {[%emt 0:00:00]} 24. Nd3 {[%emt 0:00:00] [#]} Be7 {[%emt 0:03:07]} (24... cxd3 25. Qxb3 Be7 (25... Bxc3 26. Qxc3 b4 27. Qxd3 $16) 26. Rxd3 $16 (26. Qxb5 Qxb5 27. Nxb5 Rb8 $11)) (24... Bxc3 $1 $17 25. bxc3 Nxe4) 25. Nc1 {[%emt 0:10:20]} Na5 {[%emt 0:00:26]} 26. N1e2 {[%emt 0:00:39]} ({Better is} 26. Nb1 $15) 26... b4 $17 {[%emt 0:02:15]} 27. Na4 {[%emt 0:00:39]} (27. Nb1 $17) 27... Qb5 {[%emt 0:00:27]} 28. Nc5 {[%emt 0:01:50]} c3 {[%emt 0:01:49]} (28... Bxc5 $142 29. dxc5 Rxd1 30. Qxd1 c3 31. bxc3 b3) 29. Nd3 {[%emt 0:01:28]} (29. bxc3 $2 b3 30. Nxb3 Qxb3 (30... Nxb3 31. Rb1 $16) 31. Qxb3 Nxb3 $19) 29... Nc4 {[%emt 0:02:00]} 30. Bf2 {[%emt 0:00:05]} Ra8 {[%emt 0:02:30] Black is much more active.} 31. bxc3 {[%emt 0:01:49]} (31. Qb3 $15 Na5 (31... Nxb2 32. Nxc3 Qc4 33. Qxb2 $15) 32. Qc2 (32. Nxc3 $2 Qxd3 33. Qa4 Qa6 $19)) 31... b3 $19 {[%emt 0:00:08]} 32. Rb1 {[%emt 0:00:05]} Ra2 $36 {[%emt 0:01:11][%mdl 2048] Black is on the roll.} (32... bxc2 33. Rxb5 Ra1 34. Rb8+ Kh7 35. Rc8 $15) 33. Qxb3 {[%emt 0:00:33]} Qxb3 {[%emt 0:00:16]} 34. Rxb3 {[%emt 0:00:01] aiming for Ndc1.} Rxe2 {[%emt 0:00:10]} 35. Rb8+ {[%emt 0:00:03]} Kh7 {[%emt 0:02:22]} 36. Rb7 {[%emt 0:00:45]} Ba3 {[%emt 0:01:35]} (36... Rd2 $19 37. Nf4 e5 (37... Ne3+ $2 38. Kg1 $19) 38. dxe5 Ng8) 37. Nf4 {[%emt 0:00:16]} (37. Kf1 $17 Rd2 38. Ne5 Nxe5 39. dxe5) 37... Rb2 {[%emt 0:00:35]} 38. Rxf7 {[%emt 0:00:57]} (38. Rxb2 $17 {might work better.} Bxb2 39. Be1) 38... Ne3+ {[%emt 0:00:12] A dynamic duo of knights.} 39. Kg1 {[%emt 0:00:09]} Rb1+ {[%emt 0:00:26]} 40. Be1 {[%emt 0:00:04]} Nc2 {[%emt 0:00:53]} 41. Nxe6 {[%emt 0:00:11][%cal Og1f2]} Ne8 {[%emt 0:00:39]} (41... Nxe1 42. Rxg7+ Kh8 43. Kf2 $17) 42. Ra7 {[%emt 0:00:17][%cal Og1f2]} Rxe1+ {[%emt 0:00:22]} 43. Kf2 {[%emt 0:00:10][%cal Oa7a3]} Ra1 {[%emt 0:00:53]} 44. e5 {[%emt 0:01:01]} Ra2 {[%emt 0:00:52]} 45. Kf1 $2 {[%emt 0:01:52]} (45. Nf8+ $2 Kg8 46. Ng6 Nxd4+ 47. Kf1 Nxf3 $19) (45. Kg1 Ne1 46. f4) 45... Ne3+ {[%emt 0:00:07]} 46. Ke1 {[%emt 0:00:04]} Rxh2 {[%emt 0:00:29]} 47. Nf4 {[%emt 0:00:27]} (47. Nc5 $142 Bxc5 48. dxc5) 47... Bb2 {[%emt 0:00:52][%cal Rb2c3]} 48. Ne2 {[%emt 0:00:10]} Nd5 {[%emt 0:00:20] Dodges Re7} 49. Rb7 {[%emt 0:00:37]} Bxc3+ {[%emt 0:00:58]} 50. Nxc3 {[%emt 0:00:04]} Nxc3 {[%emt 0:00:02]} 51. Re7 {[%emt 0:00:06]} Re2+ {[%emt 0:00:19]} 52. Kf1 {[%emt 0:00:01] [#]} Rd2 $1 {[%emt 0:00:25][%cal Oe8d6]} 53. Rxe8 {[%emt 0:00:10]} Rxd4 {[%emt 0:00:06][%mdl 4096] Endgame KRN-KR} 54. Rc8 {[%emt 0:00:39]} Nd5 {[%emt 0:00:21]} 55. Ke2 {[%emt 0:00:15]} Kg6 {[%emt 0:00:11]} 56. Rf8 {[%emt 0:00:55]} Ne7 {[%emt 0:01:17]} 57. g4 {[%emt 0:01:24]} Nd5 {[%emt 0:00:54]} 58. Kf2 {[%emt 0:01:48]} Rc4 {[%emt 0:00:47]} 59. Kg3 {[%emt 0:00:26]} Ne7 {[%emt 0:00:31]} 60. f4 {[%emt 0:00:50]} Rc3+ {[%emt 0:00:16]} 61. Kf2 {[%emt 0:00:45]} Rc8 {[%emt 0:00:51]} (61... Nd5 $19 {is more deadly.} 62. e6 Rc7) 62. f5+ $17 {[%emt 0:00:13]} Kg5 {[%emt 0:00:16]} 63. Rf7 {[%emt 0:00:01][%csl LRe7,LRg7]} Nd5 {[%emt 0:00:23]} 64. Kf3 $2 {[%emt 0:01:06][%mdl 8192]} (64. Rxg7+ $15 Kf4 65. f6 Kxe5 66. g5) 64... Rc7 $19 {[%emt 0:00:49]} 65. e6 {[%emt 0:00:38] [#]} Rc3+ $2 {[%emt 0:00:34]} ({Black should try} 65... g6 $1 $19 {...Rc3+ is the strong threat.} 66. Ke4 Nf6+ 67. Ke5 Rxf7 (67... Nxg4+ $2 68. Kd6 $19) 68. exf7 Nh7 (68... Nxg4+ $2 69. Ke6 $18) 69. fxg6 Kxg6) 66. Ke4 $11 {[%emt 0:00:05]} Nf6+ {[%emt 0:00:08]} 67. Kd4 {[%emt 0:00:13]} Rc8 {[%emt 0:00:12]} 68. Rxg7+ {[%emt 0:00:40]} Kf4 {[%emt 0:00:02][%cal Oc8g8]} 69. Rg6 {[%emt 0:00:44]} (69. e7 $11) 69... Nxg4 {[%emt 0:00:22]} (69... Rd8+ $15 70. Kc5 Ke5 (70... Nxg4 71. e7 $11)) 70. e7 $2 {[%emt 0:00:50][%mdl 8192]} (70. f6 $11 Rd8+ (70... Kf5 71. Rxg4 Kxe6 72. Rh4 $11) 71. Kc5) 70... Kxf5 {[%emt 0:00:23]} 71. Rg7 {[%emt 0:00:32]} Nf6 {[%emt 0:00:23]} 72. Rg1 {[%emt 0:00:29]} Ke6 {[%emt 0:01:15]} 73. Re1+ {[%emt 0:00:17]} Kf7 {[%emt 0:00:07]} 74. Rh1 {[%emt 0:00:42]} h5 {[%emt 0:00:06]} ({Worse is} 74... Kxe7 75. Rxh6 Rd8+ 76. Kc3 $15) 75. Ke5 {[%emt 0:00:10]} Kxe7 {[%emt 0:00:14]} 76. Kf5 {[%emt 0:00:06]} Kf7 {[%emt 0:00:16]} 77. Kg5 {[%emt 0:00:11]} Kg7 {[%emt 0:01:08]} 78. Re1 {[%emt 0:00:53]} Rc5+ {[%emt 0:00:05]} 79. Kh4 {[%emt 0:00:08]} Kg6 {[%emt 0:00:15]} 80. Rg1+ {[%emt 0:00:10]} Kh6 {[%emt 0:00:10]} 81. Ra1 {[%emt 0:00:43]} Rc4+ {[%emt 0:00:05]} (81... Rg5 $142 82. Ra6 Rg4+ 83. Kh3 Rf4 84. Ra7 Kg6 85. Re7 Rf3+ 86. Kh4 Rf4+ 87. Kg3 Re4 88. Rb7 h4+ 89. Kh3 Nh7 90. Kg2 Ng5 91. Rb2 Kh5 92. Kf2 h3 93. Rb3 Rf4+ 94. Ke2 h2 95. Rb8 Kg4 (95... h1=R 96. Rh8+ Kg6 97. Rxh1 $19) (95... Re4+ $2 96. Kd3 $19) 96. Rb1 Ne4 97. Ke3 Ng3 98. Kd3 Nf1 (98... h1=R $2 99. Rb8 $19) (98... h1=Q 99. Rxh1 Nxh1 100. Ke2 Re4+ 101. Kd3 Nf2+ 102. Kc3 Kf3 103. Kb3 Ke3 104. Kc3 Nd1+ 105. Kb3 Kd3 106. Ka2 Kc3 107. Ka3 Kc2 108. Ka2 Ra4#) 99. Rb8 h1=Q (99... h1=R $2 100. Rb7 $19) 100. Rg8+ Kf3 101. Rd8 Ne3 (101... Qh7+ {leads to mate.} 102. Kc3 Qc7+ 103. Kb3 Qb6+ 104. Ka3 Qc5+ 105. Kb2 Rb4+ 106. Ka3 Qa5#) 102. Rd4 Qd1+ 103. Kc3 Rxd4 (103... Qxd4+ 104. Kb3 Qd3+ 105. Ka2 Ra4+ 106. Kb2 Qc2#) 104. Kb2 Qc2+ 105. Ka3 Ra4#) 82. Kh3 {[%emt 0:00:04]} Rd4 {[%emt 0:00:12]} 83. Rg1 {[%emt 0:00:31]} Rg4 {[%emt 0:01:54]} 84. Ra1 {[%emt 0:00:22]} Rf4 {[%emt 0:00:20]} 85. Ra5 {[%emt 0:00:34]} Kg6 {[%emt 0:00:08]} 86. Kg3 {[%emt 0:00:34]} Rf5 {[%emt 0:00:06]} 87. Ra7 {[%emt 0:00:05]} Ne4+ {[%emt 0:00:20]} 88. Kh3 {[%emt 0:00:43]} Rf3+ {[%emt 0:01:00]} 89. Kh4 {[%emt 0:00:58]} Rf4+ {[%emt 0:00:11]} 90. Kh3 {[%emt 0:00:05]} h4 {[%emt 0:01:03]} 91. Ra6+ {[%emt 0:00:28]} Kh5 {[%emt 0:00:08]} 92. Ra5+ {[%emt 0:01:47]} Ng5+ {[%emt 0:00:05]} 93. Kg2 {[%emt 0:00:25]} Kg4 {[%emt 0:00:10]} 94. Ra8 {[%emt 0:00:43]} h3+ {[%emt 0:00:16]} 95. Kg1 {[%emt 0:00:25]} Kg3 {[%emt 0:00:15]} 96. Ra3+ {[%emt 0:00:43]} Nf3+ {[%emt 0:00:41]} 97. Kh1 {[%emt 0:00:13]} Re4 {[%emt 0:00:09][%cal Re4e1]} 98. Ra1 {[%emt 0:00:15]} Re1+ {[%emt 0:00:06]} 99. Rxe1 {[%emt 0:00:12]} Nxe1 {[%emt 0:00:02]} 100. Kg1 {[%emt 0:00:06]} Nd3 {[%emt 0:00:04]} 101. Kh1 {[%emt 0:00:06]} Nf2+ {[%emt 0:00:05]} 0-1

[Event "50th Ciudad Sevilla 2024"]
[Site "Sevilla"]
[Date "2025.01.13"]
[Round "4.19"]
[White "Campora, Daniel H."]
[Black "Trkulja, Zoran"]
[Result "1-0"]
[Annotator "RC"]
[ECO "C03"]
[WhiteElo "2353"]
[BlackElo "2104"]
[PlyCount "38"]
[EventDate "2025.01.10"]
[EventType "swiss"]
[EventCountry "ESP"]
[SourceTitle "playchess.com"]
[Source "ChessBase"]
[SourceQuality "1"]
[TimeControl "90+30"]

1. e4 {[%emt 0:02:30]} e6 {[%emt 0:02:30]} 2. d4 {[%emt 0:00:00]} d5 {[%emt 0:00:00]} 3. Nd2 {[%emt 0:00:00]} h6 {[%emt 0:00:00]} 4. Ngf3 {[%emt 0:00:00]} Nf6 {[%emt 0:00:00]} 5. Bd3 {[%emt 0:00:00]} c5 {[%emt 0:00:00]} 6. e5 {[%emt 0:00:00]} Nfd7 {[%emt 0:00:00]} 7. c3 {[%emt 0:00:00]} Nc6 {[%emt 0:00:00]} 8. O-O {[%emt 0:00:00]} g5 {[%emt 0:00:00]} 9. c4 {[%emt 0:00:00]} Nxd4 {[%emt 0:00:00]} 10. cxd5 {[%emt 0:00:00]} exd5 {[%emt 0:00:00]} 11. Nxd4 {[%emt 0:00:00]} cxd4 {[%emt 0:00:00]} 12. Nb3 {[%emt 0:00:00]} Bg7 {[%emt 0:00:00]} 13. f4 {[%emt 0:00:00]} gxf4 {[%emt 0:00:00]} 14. Bxf4 {[%emt 0:00:00]} Qe7 {[%emt 0:00:00]} 15. Qh5 {[%emt 0:00:00]} Nf8 {[%emt 0:00:00]} 16. Nxd4 {[%emt 0:00:00]} Be6 {[%emt 0:00:00]} 17. Rac1 {[%emt 0:00:00]} a6 {[%emt 0:00:00]} 18. Bf5 {[%emt 0:00:00]} Kd8 {[%emt 0:00:00]} 19. Bg3 {[%emt 0:00:00]} Qe8 {[%emt 0:00:00]} 1-0

[Event "50th Ciudad Sevilla 2024"]
[Site "Sevilla"]
[Date "2025.01.13"]
[Round "4.20"]
[White "Aamodt, Peder Marcus"]
[Black "Romero Calduch, Sergio"]
[Result "1-0"]
[Annotator "RC"]
[ECO "E04"]
[WhiteElo "2082"]
[BlackElo "2321"]
[PlyCount "73"]
[EventDate "2025.01.10"]
[EventType "swiss"]
[EventCountry "ESP"]
[SourceTitle "playchess.com"]
[Source "ChessBase"]
[SourceQuality "1"]
[TimeControl "90+30"]

1. d4 {[%emt 0:00:00]} Nf6 {[%emt 0:00:00]} 2. c4 {[%emt 0:00:00]} e6 {[%emt 0:00:00]} 3. Nf3 {[%emt 0:00:00]} d5 {[%emt 0:00:00]} 4. g3 {[%emt 0:00:00]} dxc4 {[%emt 0:00:00]} 5. Bg2 {[%emt 0:00:00]} Bd7 {[%emt 0:00:00]} 6. Nbd2 {[%emt 0:00:00]} Bc6 {[%emt 0:00:00]} 7. Nxc4 {[%emt 0:00:00]} Bd5 {[%emt 0:00:00]} 8. Nce5 {[%emt 0:00:00]} Bb4+ {[%emt 0:00:00]} 9. Bd2 {[%emt 0:00:00]} Bxd2+ {[%emt 0:00:00]} 10. Qxd2 {[%emt 0:00:00]} O-O {[%emt 0:00:00]} 11. O-O {[%emt 0:00:00]} c6 {[%emt 0:00:00]} 12. Rfe1 {[%emt 0:00:00]} Qb6 {[%emt 0:00:00]} 13. Qc3 {[%emt 0:00:00]} a5 {[%emt 0:00:00]} 14. Nc4 {[%emt 0:00:00]} Qb4 {[%emt 0:00:00]} 15. Ncd2 {[%emt 0:00:00]} Bxf3 {[%emt 0:00:00]} 16. Bxf3 {[%emt 0:00:00]} Nd5 {[%emt 0:00:00]} 17. Qd3 {[%emt 0:00:00]} Nd7 {[%emt 0:00:00]} 18. a3 {[%emt 0:00:00]} Qe7 {[%emt 0:00:00]} 19. e4 {[%emt 0:00:00]} N5b6 {[%emt 0:00:00]} 20. Nc4 {[%emt 0:00:00]} Rfd8 {[%emt 0:00:00]} 21. Nxb6 {[%emt 0:00:00]} Nxb6 {[%emt 0:00:00]} 22. Qb3 {[%emt 0:00:00]} Nc8 {[%emt 0:00:00]} 23. Rad1 {[%emt 0:00:00]} Nd6 {[%emt 0:00:00]} 24. Qc3 {[%emt 0:00:00]} Nb5 {[%emt 0:00:00]} 25. Qe3 {[%emt 0:00:00]} Qf6 {[%emt 0:10:10]} 26. d5 {[%emt 0:06:55]} e5 {[%emt 0:00:09]} 27. Bg2 {[%emt 0:01:33]} Nd4 {[%emt 0:00:58]} 28. Rd2 {[%emt 0:00:19]} c5 {[%emt 0:01:03]} 29. f4 {[%emt 0:00:18]} a4 {[%emt 0:01:57]} 30. Rf1 {[%emt 0:00:36]} Rd7 {[%emt 0:00:30]} 31. fxe5 {[%emt 0:00:28]} Qxe5 {[%emt 0:00:09]} 32. Qf4 {[%emt 0:00:05]} Re8 {[%emt 0:01:53]} 33. Rfd1 {[%emt 0:01:56]} f6 {[%emt 0:00:53]} 34. Qf2 {[%emt 0:02:04]} Rd6 {[%emt 0:00:35]} 35. Rxd4 {[%emt 0:01:49]} cxd4 {[%emt 0:00:04]} 36. Qxd4 {[%emt 0:00:04]} Qxd4+ {[%emt 0:00:37]} 37. Rxd4 {[%emt 0:00:01]} 1-0

[Event "50th Ciudad Sevilla 2024"]
[Site "Sevilla"]
[Date "2025.01.14"]
[Round "5.1"]
[White "Mitusov, Semen"]
[Black "Iturrizaga Bonelli, Eduardo"]
[Result "1/2-1/2"]
[Annotator "RC"]
[ECO "B13"]
[WhiteElo "2463"]
[BlackElo "2574"]
[PlyCount "38"]
[EventDate "2025.01.10"]
[EventType "swiss"]
[EventCountry "ESP"]
[SourceTitle "playchess.com"]
[Source "ChessBase"]
[SourceQuality "1"]
[TimeControl "90+30"]

1. e4 {[%emt 0:00:00]} c6 {[%emt 0:00:00]} 2. d4 {[%emt 0:00:00]} d5 {[%emt 0:00:00]} 3. exd5 {[%emt 0:00:00]} cxd5 {[%emt 0:00:00]} 4. Bd3 {[%emt 0:00:00]} Nc6 {[%emt 0:00:00]} 5. c3 {[%emt 0:00:00]} Qc7 {[%emt 0:00:00]} 6. h3 {[%emt 0:00:00]} e6 {[%emt 0:00:00]} 7. Nf3 {[%emt 0:00:00]} Bd6 {[%emt 0:00:00]} 8. O-O {[%emt 0:00:00]} Nge7 {[%emt 0:00:00]} 9. a3 {[%emt 0:00:00]} O-O {[%emt 0:00:00]} 10. Qe2 {[%emt 0:00:00]} Bd7 {[%emt 0:00:00]} 11. Be3 {[%emt 0:00:00]} Rae8 {[%emt 0:00:00]} 12. c4 {[%emt 0:00:00]} dxc4 {[%emt 0:00:00]} 13. Bxc4 {[%emt 0:00:00]} e5 {[%emt 0:00:00]} 14. d5 {[%emt 0:00:00]} Nd4 {[%emt 0:00:00]} 15. Bxd4 {[%emt 0:00:00]} exd4 {[%emt 0:00:00]} 16. Qd3 {[%emt 0:00:00]} Ng6 {[%emt 0:00:00]} 17. Nbd2 {[%emt 0:00:00]} Nf4 {[%emt 0:00:00]} 18. Qxd4 {[%emt 0:00:00]} b5 {[%emt 0:00:00]} 19. Bd3 {[%emt 0:00:00]} Be5 {[%emt 0:08:19]} 1/2-1/2

[Event "50th Ciudad Sevilla 2024"]
[Site "Sevilla"]
[Date "2025.01.14"]
[Round "5.2"]
[White "Urazayev, Arystanbek"]
[Black "Agdestein, Simen"]
[Result "1-0"]
[Annotator "ChessBase"]
[ECO "B40"]
[WhiteElo "2448"]
[BlackElo "2564"]
[PlyCount "61"]
[EventDate "2025.01.10"]
[EventType "swiss"]
[EventCountry "ESP"]
[SourceTitle "playchess.com"]
[Source "ChessBase"]
[SourceQuality "1"]
[TimeControl "90+30"]

1. e4 {[%emt 0:00:00]} c5 {[%emt 0:00:00]} 2. Nf3 {[%emt 0:00:00]} e6 {[%emt 0:00:00]} 3. d4 {[%emt 0:00:00]} cxd4 {[%emt 0:00:00]} 4. Nxd4 {[%emt 0:00:00]} Nf6 {[%emt 0:00:00]} 5. Nc3 {[%emt 0:00:00]} Nc6 {[%emt 0:00:00]} 6. a3 {[%emt 0:00:00]} d6 {[%emt 0:00:00]} 7. Be3 {[%emt 0:00:00]} Be7 {[%emt 0:00:00]} 8. Qe2 {[%emt 0:00:00]} Nxd4 {[%emt 0:00:00]} 9. Bxd4 {[%emt 0:00:00]} e5 {[%emt 0:00:00]} 10. Be3 {[%emt 0:00:00]} O-O {[%emt 0:00:00]} 11. O-O-O {[%emt 0:00:00]} a6 {[%emt 0:00:00]} 12. f3 {[%emt 0:00:00]} b5 {[%emt 0:00:00]} 13. g4 {[%emt 0:00:00]} Be6 {[%emt 0:00:00]} 14. g5 {[%emt 0:00:00]} Nd7 {[%emt 0:00:00]} 15. h4 {[%emt 0:00:00]} Nb6 {[%emt 0:00:00]} 16. f4 {[%emt 0:00:00]} exf4 {[%emt 0:00:00]} 17. Bxf4 {[%emt 0:00:00]} Rc8 {[%emt 0:00:00]} 18. Qe3 {[%emt 0:00:00]} Nc4 {[%emt 0:00:00]} 19. Bxc4 {[%emt 0:00:00]} Rxc4 {[%emt 0:00:00]} 20. Nd5 {[%emt 0:00:00]} Bxd5 {[%emt 0:00:00]} 21. Rxd5 {[%emt 0:00:00]} Qc8 {[%emt 0:00:00]} 22. Qd3 {[%emt 0:00:00]} Re8 {[%emt 0:00:00]} 23. Kb1 {[%emt 0:00:00]} g6 {[%emt 0:00:00]} 24. h5 {[%emt 0:00:00]} Qg4 {[%emt 0:00:00]} 25. hxg6 {[%emt 0:00:00]} fxg6 {[%emt 0:00:00]} 26. Rf5 {[%emt 0:00:00]} h5 {[%emt 0:00:00]} 27. Qd5+ {[%emt 0:00:00]} Kh8 {[%emt 0:00:00]} 28. Be5+ {[%emt 0:00:00]} dxe5 {[%emt 0:00:00]} 29. Qxe5+ {[%emt 0:00:00]} Kg8 {[%emt 0:00:00]} 30. Qe6+ {[%emt 0:00:00]} Kh8 {[%emt 0:00:00]} 31. Qxg6 {[%emt 0:00:00]} 1-0

[Event "50th Ciudad Sevilla 2024"]
[Site "Sevilla"]
[Date "2025.01.14"]
[Round "5.3"]
[White "Druska, Juraj"]
[Black "Makhnev, Denis"]
[Result "1/2-1/2"]
[Annotator "TA"]
[ECO "B15"]
[WhiteElo "2438"]
[BlackElo "2532"]
[PlyCount "45"]
[EventDate "2025.01.10"]
[EventType "swiss"]
[EventCountry "ESP"]
[SourceTitle "playchess.com"]
[Source "ChessBase"]
[SourceQuality "1"]
[TimeControl "90+30"]

{[%evp 16,45,0,5,8,4,0,5,21,0,10,0,17,20,8,6,12,10,36,31,30,33,61,56,48,31,21,18,38,-8,0,-6]} 1. e4 {[%emt 0:00:00]} c6 {[%emt 0:00:00]} 2. d4 {[%emt 0:00:00]} d5 {[%emt 0:00:00]} 3. Nc3 {[%emt 0:00:00]} dxe4 {[%emt 0:00:00]} 4. Nxe4 {[%emt 0:00:00]} Nf6 {[%emt 0:00:00]} 5. Nxf6+ {[%emt 0:00:00]} exf6 {[%emt 0:00:00]} 6. Nf3 {[%emt 0:00:00]} Bd6 {[%emt 0:00:00]} 7. Bd3 {[%emt 0:00:00]} O-O {[%emt 0:00:00]} 8. O-O {[%emt 0:00:00]} Bg4 {[%emt 0:00:00]} 9. h3 {[%emt 0:00:00]} Bh5 {[%emt 0:00:00]} 10. Bf5 {[%emt 0:00:00]} Re8 {[%emt 0:00:00]} 11. Qd3 {[%emt 0:00:00]} Bg6 {[%emt 0:00:00]} 12. Nh4 {[%emt 0:00:00]} Na6 {[%emt 0:00:00]} 13. Bd2 {[%emt 0:00:00]} Bxf5 {[%emt 0:00:00]} 14. Nxf5 {[%emt 0:00:00]} Bf8 {[%emt 0:00:00]} 15. Rad1 {[%emt 0:00:00]} Qd7 {[%emt 0:00:00]} 16. c4 {[%emt 0:00:00]} Rad8 {[%emt 0:00:00]} 17. Qf3 {[%emt 0:00:00]} Qe6 {[%emt 0:00:00] [#]} 18. d5 $1 {[%emt 0:00:00]} Qe2 {[%emt 0:00:00]} (18... cxd5 19. Rfe1) 19. Qxe2 $1 {[%emt 0:00:00]} Rxe2 {[%emt 0:00:00]} 20. Ba5 {[%emt 0:00:00]} b6 {[%emt 0:00:00]} 21. Bc3 {[%emt 0:00:00] Hoping for Nd4.} (21. dxc6 $2 {loses.} Rxd1 22. Rxd1 bxa5 $19) 21... cxd5 {[%emt 0:00:00]} 22. cxd5 {[%emt 0:00:00]} (22. Rxd5 $14 {is superior.} Rde8 23. Nd4) 22... h5 {[%emt 0:00:00]} 23. Nd4 {[%emt 0:00:00]} 1/2-1/2

[Event "50th Ciudad Sevilla 2024"]
[Site "Sevilla"]
[Date "2025.01.14"]
[Round "5.4"]
[White "Isanzhulov, Arystan"]
[Black "Kvaloy, Aksel Bu"]
[Result "1/2-1/2"]
[Annotator "ChessBase"]
[ECO "C47"]
[WhiteElo "2397"]
[BlackElo "2487"]
[PlyCount "66"]
[EventDate "2025.01.10"]
[EventType "swiss"]
[EventCountry "ESP"]
[SourceTitle "playchess.com"]
[Source "ChessBase"]
[SourceQuality "1"]
[TimeControl "90+30"]

1. e4 {[%emt 0:00:00]} e5 {[%emt 0:00:00]} 2. Nf3 {[%emt 0:00:00]} Nc6 {[%emt 0:00:00]} 3. Nc3 {[%emt 0:00:00]} Nf6 {[%emt 0:00:00]} 4. d4 {[%emt 0:00:00]} exd4 {[%emt 0:00:00]} 5. Nxd4 {[%emt 0:00:00]} Bb4 {[%emt 0:00:00]} 6. Nxc6 {[%emt 0:00:00]} bxc6 {[%emt 0:00:00]} 7. Bd3 {[%emt 0:00:00]} d5 {[%emt 0:00:00]} 8. exd5 {[%emt 0:00:00]} cxd5 {[%emt 0:00:00]} 9. O-O {[%emt 0:00:00]} O-O {[%emt 0:00:00]} 10. h3 {[%emt 0:00:00]} c6 {[%emt 0:00:00]} 11. Qf3 {[%emt 0:00:00]} Bd6 {[%emt 0:00:00]} 12. Bf4 {[%emt 0:00:00]} Qc7 {[%emt 0:00:00]} 13. Bxd6 {[%emt 0:00:00]} Qxd6 {[%emt 0:00:00]} 14. Rfe1 {[%emt 0:00:00]} Bd7 {[%emt 0:00:00]} 15. b3 {[%emt 0:00:00]} Rfe8 {[%emt 0:00:00]} 16. Rad1 {[%emt 0:00:00]} g6 {[%emt 0:00:00]} 17. Rxe8+ {[%emt 0:00:00]} Rxe8 {[%emt 0:00:00]} 18. Ne2 {[%emt 0:00:00]} Kg7 {[%emt 0:00:00]} 19. Qf4 {[%emt 0:00:00]} Re5 {[%emt 0:00:00]} 20. b4 {[%emt 0:00:00]} Qe7 {[%emt 0:00:00]} 21. Kf1 {[%emt 0:00:00]} Ne4 {[%emt 0:00:00]} 22. f3 {[%emt 0:00:00]} Rf5 {[%emt 0:00:00]} 23. Qe3 {[%emt 0:00:00]} Ng3+ {[%emt 0:00:00]} 24. Kf2 {[%emt 0:00:00]} Qxe3+ {[%emt 0:00:00]} 25. Kxe3 {[%emt 0:00:00]} Re5+ {[%emt 0:00:00]} 26. Kf4 {[%emt 0:00:00]} Rxe2 {[%emt 0:00:00]} 27. Kxg3 {[%emt 0:00:00]} Re8 {[%emt 0:00:00]} 28. Kf4 {[%emt 0:00:00]} Kf6 {[%emt 0:00:00]} 29. h4 {[%emt 0:00:00]} h6 {[%emt 0:00:00]} 30. g4 {[%emt 0:00:00]} g5+ {[%emt 0:00:00]} 31. Kg3 {[%emt 0:00:00]} Rb8 {[%emt 0:00:00]} 32. a3 {[%emt 0:00:00]} Re8 {[%emt 0:00:00]} 33. Rh1 {[%emt 0:00:00]} Rg8 {[%emt 0:00:56]} 1/2-1/2

[Event "50th Ciudad Sevilla 2024"]
[Site "Sevilla"]
[Date "2025.01.14"]
[Round "5.5"]
[White "Xu, Xiangyu"]
[Black "Xu, Minghui"]
[Result "1/2-1/2"]
[Annotator "RC"]
[ECO "D14"]
[WhiteElo "2611"]
[BlackElo "2428"]
[PlyCount "34"]
[EventDate "2025.01.10"]
[EventType "swiss"]
[EventCountry "ESP"]
[SourceTitle "playchess.com"]
[Source "ChessBase"]
[SourceQuality "1"]
[TimeControl "90+30"]

1. d4 {[%emt 0:00:00]} d5 {[%emt 0:00:00]} 2. Nf3 {[%emt 0:00:00]} Nf6 {[%emt 0:00:00]} 3. c4 {[%emt 0:00:00]} c6 {[%emt 0:00:00]} 4. cxd5 {[%emt 0:00:00]} cxd5 {[%emt 0:00:00]} 5. Nc3 {[%emt 0:00:00]} Nc6 {[%emt 0:00:00]} 6. Bf4 {[%emt 0:00:00]} Bf5 {[%emt 0:00:00]} 7. e3 {[%emt 0:00:00]} e6 {[%emt 0:00:00]} 8. Bd3 {[%emt 0:00:00]} Bxd3 {[%emt 0:00:00]} 9. Qxd3 {[%emt 0:00:00]} Bd6 {[%emt 0:00:00]} 10. Bxd6 {[%emt 0:00:00]} Qxd6 {[%emt 0:00:00]} 11. O-O {[%emt 0:00:00]} O-O {[%emt 0:00:00]} 12. Rfc1 {[%emt 0:00:00]} Rfc8 {[%emt 0:00:00]} 13. h3 {[%emt 0:00:00]} h6 {[%emt 0:00:00]} 14. Nb5 {[%emt 0:00:00]} Qd8 {[%emt 0:00:00]} 15. Nc3 {[%emt 0:00:00]} Qd6 {[%emt 0:00:00]} 16. Nb5 {[%emt 0:00:00]} Qd8 {[%emt 0:00:00]} 17. Nc3 {[%emt 0:00:00]} Qd6 {[%emt 0:00:00]} 1/2-1/2